[Event "Live Chess"]
[Site "Chess.com"]
[Date "2020.05.16"]
[Round "1.31"]
[White "Somton, Anita"]
[Black "Bridgeman, Niamh"]
[Result "1-0"]
[ECO "A80"]
[WhiteElo "1935"]
[BlackElo "1614"]
[PlyCount "109"]
[EventDate "2020.??.??"]
[TimeControl "180+2"]
[WhiteClock "0:00:15"]
[BlackClock "0:00:21"]

1. d4 {[%emt 0:00:01]} e6 {[%emt 0:00:01]} 2. Nf3 {[%emt 0:00:02]} f5 {[%emt 0:
00:01]} 3. e3 {[%emt 0:00:01]} Nf6 {[%emt 0:00:01]} 4. Be2 {[%emt 0:00:02]} b6
{[%emt 0:00:01]} 5. O-O {[%emt 0:00:02]} Bb7 {[%emt 0:00:01]} 6. c4 {[%emt 0:
00:02]} Be7 {[%emt 0:00:01]} 7. Nc3 {[%emt 0:00:04]} O-O {[%emt 0:00:01]} 8. b4
{[%emt 0:00:05]} Bxb4 {[%emt 0:00:06]} 9. Bb2 {[%emt 0:00:08]} Ne4 {[%emt 0:00:
05]} 10. Qc2 {[%emt 0:00:18]} Bxc3 {[%emt 0:00:12]} 11. Bxc3 {[%emt 0:00:02]}
Nxc3 {[%emt 0:00:10]} 12. Qxc3 {[%emt 0:00:01]} d6 {[%emt 0:00:01]} 13. Rfd1 {
[%emt 0:00:10]} Nd7 {[%emt 0:00:05]} 14. d5 {[%emt 0:00:28]} e5 {[%emt 0:00:04]
} 15. Rab1 {[%emt 0:00:12]} Nc5 {[%emt 0:00:04]} 16. Qc2 {[%emt 0:00:14]} Qe8 {
[%emt 0:00:20]} 17. Nd2 {[%emt 0:00:30]} Qa4 {[%emt 0:00:12]} 18. Nb3 {[%emt 0:
00:12]} Nxb3 {[%emt 0:00:08]} 19. axb3 {[%emt 0:00:03]} Qd7 {[%emt 0:00:23]}
20. f3 {[%emt 0:00:14]} Rac8 {[%emt 0:00:23]} 21. Bd3 {[%emt 0:00:02]} g6 {
[%emt 0:00:21]} 22. b4 {[%emt 0:00:02]} c6 {[%emt 0:00:06]} 23. e4 {[%emt 0:00:
11]} cxd5 {[%emt 0:00:05]} 24. exd5 {[%emt 0:00:05]} Bxd5 {[%emt 0:00:03]} 25.
Bxf5 {[%emt 0:00:23]} Qxf5 {[%emt 0:00:22]} 26. Qxf5 {[%emt 0:00:01]} gxf5 {
[%emt 0:00:02]} 27. cxd5 {[%emt 0:00:02]} Rc4 {[%emt 0:00:06]} 28. b5 {[%emt 0:
00:01]} Rfc8 {[%emt 0:00:03]} 29. Ra1 {[%emt 0:00:01]} R8c7 {[%emt 0:00:05]}
30. Ra6 {[%emt 0:00:02]} R4c5 {[%emt 0:00:02]} 31. Rda1 {[%emt 0:00:01]} Rxb5 {
[%emt 0:00:05]} 32. Rxa7 {[%emt 0:00:01]} Rxa7 {[%emt 0:00:02]} 33. Rxa7 {
[%emt 0:00:01]} Rxd5 {[%emt 0:00:01]} 34. Rb7 {[%emt 0:00:01]} b5 {[%emt 0:00:
03]} 35. Kf2 {[%emt 0:00:01]} Rc5 {[%emt 0:00:05]} 36. Ke3 {[%emt 0:00:04]} d5
{[%emt 0:00:03]} 37. g4 {[%emt 0:00:02]} d4+ {[%emt 0:00:01]} 38. Kd3 {[%emt 0:
00:01]} Rc3+ {[%emt 0:00:03]} 39. Ke2 {[%emt 0:00:01]} Rb3 {[%emt 0:00:02]} 40.
gxf5 {[%emt 0:00:02]} b4 {[%emt 0:00:02]} 41. f6 {[%emt 0:00:02]} Rb2+ {
[%emt 0:00:01]} 42. Kd3 {[%emt 0:00:02]} b3 {[%emt 0:00:02]} 43. Ke4 {[%emt 0:
00:06]} Re2+ {[%emt 0:00:07]} 44. Kf5 {[%emt 0:00:01]} b2 {[%emt 0:00:02]} 45.
Rb8+ {[%emt 0:00:02]} Kf7 {[%emt 0:00:02]} 46. Rb7+ {[%emt 0:00:02]} Kg8 {
[%emt 0:00:01]} 47. f7+ {[%emt 0:00:02]} Kf8 {[%emt 0:00:02]} 48. Ke6 {[%emt 0:
00:01]} Rf2 {[%emt 0:00:05]} 49. Rb8+ {[%emt 0:00:02]} Kg7 {[%emt 0:00:02]} 50.
f8=Q+ {[%emt 0:00:01]} Kg6 {[%emt 0:00:01]} 51. Qf5+ {[%emt 0:00:03]} Kh6 {
[%emt 0:00:02]} 52. Qh3+ {[%emt 0:00:04]} Kg7 {[%emt 0:00:04]} 53. Qg4+ {
[%emt 0:00:03]} Kh6 {[%emt 0:00:03]} 54. Rg8 {[%emt 0:00:02]} b1=Q {[%emt 0:00:
02]} 55. Qh4# {[%emt 0:00:01] Somton, Anita won by checkmate} 1-0

[Event "Live Chess"]
[Site "Chess.com"]
[Date "2020.05.16"]
[Round "1.32"]
[White "Bridgeman, Niamh"]
[Black "Somton, Anita"]
[Result "1-0"]
[ECO "D11"]
[WhiteElo "1628"]
[BlackElo "1919"]
[PlyCount "71"]
[EventDate "2020.??.??"]
[TimeControl "180+2"]
[WhiteClock "0:00:19"]
[BlackClock "0:00:48"]

1. d4 {[%emt 0:00:00]} d5 {[%emt 0:00:01]} 2. Nf3 {[%emt 0:00:01]} Nf6 {
[%emt 0:00:02]} 3. e3 {[%emt 0:00:01]} c6 {[%emt 0:00:01]} 4. Bd3 {[%emt 0:00:
02]} Bg4 {[%emt 0:00:01]} 5. Nbd2 {[%emt 0:00:01]} e6 {[%emt 0:00:01]} 6. O-O {
[%emt 0:00:02]} Bd6 {[%emt 0:00:05]} 7. b3 {[%emt 0:00:03]} O-O {[%emt 0:00:02]
} 8. Bb2 {[%emt 0:00:02]} Nbd7 {[%emt 0:00:02]} 9. c4 {[%emt 0:00:14]} Rc8 {
[%emt 0:00:22]} 10. c5 {[%emt 0:00:04]} Bc7 {[%emt 0:00:04]} 11. b4 {[%emt 0:
00:02]} e5 {[%emt 0:00:19]} 12. dxe5 {[%emt 0:00:10]} Nxe5 {[%emt 0:00:03]} 13.
Be2 {[%emt 0:00:02]} Nxf3+ {[%emt 0:00:32]} 14. Nxf3 {[%emt 0:00:10]} Re8 {
[%emt 0:00:05]} 15. a4 {[%emt 0:00:16]} Qd7 {[%emt 0:00:29]} 16. b5 {[%emt 0:
00:24]} Bxf3 {[%emt 0:00:10]} 17. gxf3 {[%emt 0:00:14]} Qf5 {[%emt 0:00:04]}
18. f4 {[%emt 0:00:17]} Rcd8 {[%emt 0:00:36]} 19. Bd3 {[%emt 0:00:24]} Qg4+ {
[%emt 0:00:05]} 20. Qxg4 {[%emt 0:00:02]} Nxg4 {[%emt 0:00:01]} 21. bxc6 {
[%emt 0:00:07]} bxc6 {[%emt 0:00:02]} 22. Rab1 {[%emt 0:00:03]} f6 {[%emt 0:00:
06]} 23. h3 {[%emt 0:00:08]} Nh6 {[%emt 0:00:02]} 24. Bd4 {[%emt 0:00:03]} Nf7
{[%emt 0:00:05]} 25. Rb7 {[%emt 0:00:03]} Rc8 {[%emt 0:00:03]} 26. Bf5 {
[%emt 0:00:04]} Nd8 {[%emt 0:00:11]} 27. Bxc8 {[%emt 0:00:04]} Nxb7 {[%emt 0:
00:01]} 28. Bxb7 {[%emt 0:00:01]} f5 {[%emt 0:00:04]} 29. Bxc6 {[%emt 0:00:02]}
Rd8 {[%emt 0:00:02]} 30. Rb1 {[%emt 0:00:03]} Ba5 {[%emt 0:00:02]} 31. Rb7 {
[%emt 0:00:04]} g6 {[%emt 0:00:03]} 32. Rd7 {[%emt 0:00:04]} Re8 {[%emt 0:00:
03]} 33. Rg7+ {[%emt 0:00:02]} Kf8 {[%emt 0:00:02]} 34. Bxe8 {[%emt 0:00:01]}
Kxe8 {[%emt 0:00:01]} 35. Rxh7 {[%emt 0:00:03]} Kf8 {[%emt 0:00:03]} 36. c6 {
[%emt 0:00:02] Bridgeman, Niamh won by resignation} 1-0

[Event "Live Chess"]
[Site "Chess.com"]
[Date "2020.05.16"]
[Round "1.33"]
[White "Somton, Anita"]
[Black "Bridgeman, Niamh"]
[Result "1-0"]
[ECO "A80"]
[WhiteElo "1922"]
[BlackElo "1625"]
[PlyCount "69"]
[EventDate "2020.??.??"]
[TimeControl "180+2"]
[WhiteClock "0:00:15"]
[BlackClock "0:01:48"]

1. d4 {[%emt 0:00:00]} e6 {[%emt 0:00:00]} 2. Nf3 {[%emt 0:00:01]} f5 {[%emt 0:
00:01]} 3. e3 {[%emt 0:00:01]} Nf6 {[%emt 0:00:01]} 4. Be2 {[%emt 0:00:01]} b6
{[%emt 0:00:01]} 5. O-O {[%emt 0:00:01]} Bb7 {[%emt 0:00:01]} 6. c4 {[%emt 0:
00:01]} Be7 {[%emt 0:00:01]} 7. Nc3 {[%emt 0:00:01]} O-O {[%emt 0:00:02]} 8. a3
{[%emt 0:00:04]} Ne4 {[%emt 0:00:02]} 9. Qc2 {[%emt 0:00:05]} Nxc3 {[%emt 0:00:
02]} 10. Qxc3 {[%emt 0:00:06]} Bf6 {[%emt 0:00:01]} 11. b4 {[%emt 0:00:04]} d6
{[%emt 0:00:01]} 12. Bb2 {[%emt 0:00:06]} Nd7 {[%emt 0:00:02]} 13. Qb3 {
[%emt 0:00:03]} Kh8 {[%emt 0:00:03]} 14. c5 {[%emt 0:00:04]} e5 {[%emt 0:00:22]
} 15. dxe5 {[%emt 0:00:07]} dxe5 {[%emt 0:00:03]} 16. Rac1 {[%emt 0:00:12]}
Bxf3 {[%emt 0:00:08]} 17. Bxf3 {[%emt 0:00:02]} e4 {[%emt 0:00:02]} 18. Be2 {
[%emt 0:00:05]} Bxb2 {[%emt 0:00:07]} 19. Qxb2 {[%emt 0:00:02]} Qf6 {[%emt 0:
00:02]} 20. Qb3 {[%emt 0:00:07]} Rad8 {[%emt 0:00:08]} 21. Rfd1 {[%emt 0:00:08]
} Ne5 {[%emt 0:00:12]} 22. Qa4 {[%emt 0:00:09]} Nc6 {[%emt 0:00:29]} 23. b5 {
[%emt 0:00:05]} Na5 {[%emt 0:00:05]} 24. cxb6 {[%emt 0:00:03]} cxb6 {[%emt 0:
00:05]} 25. Rc7 {[%emt 0:00:11]} Rxd1+ {[%emt 0:00:14]} 26. Qxd1 {[%emt 0:00:
03]} Rd8 {[%emt 0:00:11]} 27. Rd7 {[%emt 0:00:09]} Rxd7 {[%emt 0:00:20]} 28.
Qxd7 {[%emt 0:00:02]} h6 {[%emt 0:00:14]} 29. g3 {[%emt 0:00:03]} Qa1+ {
[%emt 0:00:12]} 30. Kg2 {[%emt 0:00:02]} Qxa3 {[%emt 0:00:01]} 31. Qxf5 {
[%emt 0:00:05]} Qb2 {[%emt 0:00:14]} 32. Bh5 {[%emt 0:00:04]} Qb4 {[%emt 0:00:
09]} 33. Bg6 {[%emt 0:00:04]} Kg8 {[%emt 0:00:17]} 34. Qf7+ {[%emt 0:00:04]}
Kh8 {[%emt 0:00:02]} 35. Qe8+ {[%emt 0:00:01] Somton, Anita won by resignation
} 1-0

[Event "Live Chess"]
[Site "Chess.com"]
[Date "2020.05.16"]
[Round "1.34"]
[White "Bridgeman, Niamh"]
[Black "Somton, Anita"]
[Result "1/2-1/2"]
[ECO "D11"]
[WhiteElo "1630"]
[BlackElo "1916"]
[PlyCount "126"]
[EventDate "2020.??.??"]
[TimeControl "180+2"]
[WhiteClock "0:00:52"]
[BlackClock "0:00:19"]

1. d4 {[%emt 0:00:00]} d5 {[%emt 0:00:02]} 2. Nf3 {[%emt 0:00:01]} Nf6 {
[%emt 0:00:01]} 3. e3 {[%emt 0:00:01]} c6 {[%emt 0:00:01]} 4. Bd3 {[%emt 0:00:
01]} Bg4 {[%emt 0:00:01]} 5. Nbd2 {[%emt 0:00:01]} e6 {[%emt 0:00:02]} 6. O-O {
[%emt 0:00:02]} Bd6 {[%emt 0:00:02]} 7. b3 {[%emt 0:00:02]} Nbd7 {[%emt 0:00:
03]} 8. Bb2 {[%emt 0:00:01]} O-O {[%emt 0:00:01]} 9. c4 {[%emt 0:00:06]} e5 {
[%emt 0:00:09]} 10. dxe5 {[%emt 0:00:18]} Nxe5 {[%emt 0:00:03]} 11. Be2 {
[%emt 0:00:06]} Nxf3+ {[%emt 0:00:13]} 12. Nxf3 {[%emt 0:00:02]} Ne4 {[%emt 0:
00:14]} 13. cxd5 {[%emt 0:00:29]} cxd5 {[%emt 0:00:02]} 14. Qd4 {[%emt 0:00:16]
} Nf6 {[%emt 0:00:10]} 15. Rfd1 {[%emt 0:00:10]} Re8 {[%emt 0:00:07]} 16. Rac1
{[%emt 0:00:11]} a6 {[%emt 0:00:29]} 17. h3 {[%emt 0:00:13]} Be6 {[%emt 0:00:
02]} 18. Rc2 {[%emt 0:00:09]} Rc8 {[%emt 0:00:04]} 19. Rdc1 {[%emt 0:00:07]}
Qa5 {[%emt 0:00:03]} 20. Rxc8 {[%emt 0:00:17]} Rxc8 {[%emt 0:00:03]} 21. Rxc8+
{[%emt 0:00:02]} Bxc8 {[%emt 0:00:01]} 22. Qc3 {[%emt 0:00:33]} Qd8 {[%emt 0:
00:08]} 23. Nd2 {[%emt 0:00:14]} Bd7 {[%emt 0:00:05]} 24. Bd3 {[%emt 0:00:02]}
Bc6 {[%emt 0:00:03]} 25. Bf5 {[%emt 0:00:03]} Qe7 {[%emt 0:00:07]} 26. Nf3 {
[%emt 0:00:02]} Bb4 {[%emt 0:00:06]} 27. Qd4 {[%emt 0:00:03]} Bc5 {[%emt 0:00:
03]} 28. Qc3 {[%emt 0:00:02]} Bb4 {[%emt 0:00:03]} 29. Qe5 {[%emt 0:00:04]}
Qxe5 {[%emt 0:00:06]} 30. Bxe5 {[%emt 0:00:01]} Nd7 {[%emt 0:00:07]} 31. Bb2 {
[%emt 0:00:04]} g6 {[%emt 0:00:03]} 32. Bxd7 {[%emt 0:00:02]} Bxd7 {[%emt 0:00:
02]} 33. Nd4 {[%emt 0:00:02]} Kf8 {[%emt 0:00:04]} 34. Kf1 {[%emt 0:00:01]} Ke7
{[%emt 0:00:03]} 35. Ke2 {[%emt 0:00:01]} Kd6 {[%emt 0:00:04]} 36. Kd3 {
[%emt 0:00:02]} Bc5 {[%emt 0:00:03]} 37. a3 {[%emt 0:00:02]} Bxd4 {[%emt 0:00:
02]} 38. Kxd4 {[%emt 0:00:01]} Be6 {[%emt 0:00:03]} 39. Bc3 {[%emt 0:00:01]}
Bd7 {[%emt 0:00:02]} 40. Bb4+ {[%emt 0:00:01]} Ke6 {[%emt 0:00:08]} 41. Kc5 {
[%emt 0:00:01]} Bc6 {[%emt 0:00:01]} 42. Kb6 {[%emt 0:00:04]} Ke5 {[%emt 0:00:
04]} 43. f3 {[%emt 0:00:04]} d4 {[%emt 0:00:03]} 44. exd4+ {[%emt 0:00:04]}
Kxd4 {[%emt 0:00:02]} 45. Kc7 {[%emt 0:00:02]} Ke3 {[%emt 0:00:03]} 46. Kd6 {
[%emt 0:00:04]} Kf2 {[%emt 0:00:02]} 47. Ke7 {[%emt 0:00:02]} Bd5 {[%emt 0:00:
03]} 48. Kf6 {[%emt 0:00:07]} Kxg2 {[%emt 0:00:02]} 49. h4 {[%emt 0:00:02]}
Kxf3 {[%emt 0:00:02]} 50. Be1 {[%emt 0:00:03]} Bxb3 {[%emt 0:00:02]} 51. Kg7 {
[%emt 0:00:02]} h5 {[%emt 0:00:04]} 52. Kf6 {[%emt 0:00:02]} Kg4 {[%emt 0:00:
03]} 53. Bf2 {[%emt 0:00:03]} a5 {[%emt 0:00:07]} 54. Be1 {[%emt 0:00:02]} a4 {
[%emt 0:00:02]} 55. Bf2 {[%emt 0:00:02]} b5 {[%emt 0:00:02]} 56. Be1 {[%emt 0:
00:01]} Kf3 {[%emt 0:00:03]} 57. Kg5 {[%emt 0:00:02]} Ke4 {[%emt 0:00:03]} 58.
Bc3 {[%emt 0:00:02]} Kd3 {[%emt 0:00:02]} 59. Bb4 {[%emt 0:00:01]} Kc4 {
[%emt 0:00:03]} 60. Be7 {[%emt 0:00:01]} Kd5 {[%emt 0:00:06]} 61. Bb4 {[%emt 0:
00:01]} Kc4 {[%emt 0:00:02]} 62. Be7 {[%emt 0:00:01]} Kd5 {[%emt 0:00:02]} 63.
Bb4 {[%emt 0:00:01]} Kc4 {[%emt 0:00:01] Game drawn by repetition} 1/2-1/2

[Event "Live Chess"]
[Site "Chess.com"]
[Date "2020.05.16"]
[Round "1.41"]
[White "Varney, Zoe"]
[Black "Pert, Nina"]
[Result "1-0"]
[ECO "C01"]
[WhiteElo "1975"]
[BlackElo "1795"]
[PlyCount "41"]
[EventDate "2020.??.??"]
[TimeControl "180+2"]
[WhiteClock "0:00:20"]
[BlackClock "0:00:39"]

1. e4 {[%emt 0:00:01]} e6 {[%emt 0:00:01]} 2. d4 {[%emt 0:00:02]} d5 {[%emt 0:
00:01]} 3. exd5 {[%emt 0:00:01]} exd5 {[%emt 0:00:01]} 4. Nf3 {[%emt 0:00:01]}
Bd6 {[%emt 0:00:02]} 5. c4 {[%emt 0:00:01]} c6 {[%emt 0:00:08]} 6. Nc3 {
[%emt 0:00:02]} Ne7 {[%emt 0:00:18]} 7. c5 {[%emt 0:00:01]} Bc7 {[%emt 0:00:02]
} 8. Bd3 {[%emt 0:00:01]} Bg4 {[%emt 0:00:02]} 9. O-O {[%emt 0:00:05]} Nd7 {
[%emt 0:00:11]} 10. Re1 {[%emt 0:00:13]} O-O {[%emt 0:00:04]} 11. Bxh7+ {
[%emt 0:00:13]} Kh8 {[%emt 0:00:20]} 12. Bc2 {[%emt 0:00:06]} b6 {[%emt 0:00:
36]} 13. h3 {[%emt 0:00:30]} Bh5 {[%emt 0:00:04]} 14. b4 {[%emt 0:00:21]} a5 {
[%emt 0:00:18]} 15. cxb6 {[%emt 0:00:38]} Bxb6 {[%emt 0:00:02]} 16. b5 {
[%emt 0:00:01]} Bxf3 {[%emt 0:00:21]} 17. Qxf3 {[%emt 0:00:02]} Nf6 {[%emt 0:
00:11]} 18. Bg5 {[%emt 0:00:17]} Neg8 {[%emt 0:00:14]} 19. Qf4 {[%emt 0:00:18]}
Qd7 {[%emt 0:00:21]} 20. Qh4+ {[%emt 0:00:09]} Nh7 {[%emt 0:00:03]} 21. Qxh7# {
[%emt 0:00:02] Varney, Zoe won by checkmate} 1-0

[Event "Live Chess"]
[Site "Chess.com"]
[Date "2020.05.16"]
[Round "1.42"]
[White "Pert, Nina"]
[Black "Varney, Zoe"]
[Result "0-1"]
[ECO "C54"]
[WhiteElo "1791"]
[BlackElo "1982"]
[PlyCount "66"]
[EventDate "2020.??.??"]
[TimeControl "180+2"]
[WhiteClock "0:00:15"]
[BlackClock "0:00:18"]

1. e4 {[%emt 0:00:00]} e5 {[%emt 0:00:00]} 2. Nf3 {[%emt 0:00:01]} Nc6 {
[%emt 0:00:01]} 3. Bc4 {[%emt 0:00:02]} Bc5 {[%emt 0:00:02]} 4. c3 {[%emt 0:00:
02]} Nf6 {[%emt 0:00:01]} 5. d4 {[%emt 0:00:02]} exd4 {[%emt 0:00:01]} 6. cxd4
{[%emt 0:00:01]} Bb4+ {[%emt 0:00:01]} 7. Nc3 {[%emt 0:00:01]} Nxe4 {[%emt 0:
00:03]} 8. O-O {[%emt 0:00:03]} Bxc3 {[%emt 0:00:01]} 9. d5 {[%emt 0:00:03]}
Bf6 {[%emt 0:00:02]} 10. Re1 {[%emt 0:00:02]} Ne7 {[%emt 0:00:01]} 11. Rxe4 {
[%emt 0:00:02]} d6 {[%emt 0:00:03]} 12. Bg5 {[%emt 0:00:03]} Bxg5 {[%emt 0:00:
02]} 13. Nxg5 {[%emt 0:00:01]} h6 {[%emt 0:00:02]} 14. Qe2 {[%emt 0:00:04]}
hxg5 {[%emt 0:00:01]} 15. Re1 {[%emt 0:00:02]} Be6 {[%emt 0:00:01]} 16. dxe6 {
[%emt 0:00:03]} f6 {[%emt 0:00:01]} 17. Re3 {[%emt 0:00:53]} c6 {[%emt 0:00:01]
} 18. Qc2 {[%emt 0:00:10]} Qc7 {[%emt 0:00:29]} 19. Bd3 {[%emt 0:00:20]} O-O-O
{[%emt 0:00:10]} 20. a4 {[%emt 0:00:04]} d5 {[%emt 0:00:04]} 21. g3 {[%emt 0:
00:06]} Rh6 {[%emt 0:00:11]} 22. R3e2 {[%emt 0:00:57]} g4 {[%emt 0:00:21]} 23.
Rf1 {[%emt 0:00:25]} Rdh8 {[%emt 0:00:02]} 24. f3 {[%emt 0:00:01]} Qb6+ {
[%emt 0:00:40]} 25. Kh1 {[%emt 0:00:04]} Qd4 {[%emt 0:01:03]} 26. Bf5 {[%emt 0:
00:03]} gxf3 {[%emt 0:00:11]} 27. Rxf3 {[%emt 0:00:01]} Rh5 {[%emt 0:00:05]}
28. Bd3 {[%emt 0:00:04]} Qg4 {[%emt 0:00:04]} 29. Rf1 {[%emt 0:00:02]} Qh3 {
[%emt 0:00:02]} 30. Rff2 {[%emt 0:00:02]} Qxg3 {[%emt 0:00:02]} 31. Rg2 {
[%emt 0:00:02]} Qf3 {[%emt 0:00:03]} 32. Ref2 {[%emt 0:00:02]} Rxh2+ {[%emt 0:
00:03]} 33. Kg1 {[%emt 0:00:03]} Rh1# {[%emt 0:00:01] Varney, Zoe won by
checkmate} 0-1

[Event "Live Chess"]
[Site "Chess.com"]
[Date "2020.05.16"]
[Round "1.43"]
[White "Varney, Zoe"]
[Black "Pert, Nina"]
[Result "0-1"]
[ECO "C01"]
[WhiteElo "1962"]
[BlackElo "1803"]
[PlyCount "50"]
[EventDate "2020.??.??"]
[TimeControl "180+2"]
[WhiteClock "0:00:26"]
[BlackClock "0:00:35"]

1. e4 {[%emt 0:00:00]} e6 {[%emt 0:00:02]} 2. d4 {[%emt 0:00:01]} d5 {[%emt 0:
00:01]} 3. exd5 {[%emt 0:00:01]} exd5 {[%emt 0:00:01]} 4. Nf3 {[%emt 0:00:00]}
Nc6 {[%emt 0:00:07]} 5. c4 {[%emt 0:00:09]} Be6 {[%emt 0:00:08]} 6. cxd5 {
[%emt 0:00:13]} Bxd5 {[%emt 0:00:02]} 7. Nc3 {[%emt 0:00:01]} Bb4 {[%emt 0:00:
03]} 8. Bb5 {[%emt 0:00:08]} Nge7 {[%emt 0:00:12]} 9. Be3 {[%emt 0:00:08]} Qd6
{[%emt 0:00:11]} 10. O-O {[%emt 0:00:08]} O-O {[%emt 0:00:08]} 11. Nxd5 {
[%emt 0:00:08]} Qxd5 {[%emt 0:00:03]} 12. Bxc6 {[%emt 0:00:02]} Nxc6 {[%emt 0:
00:01]} 13. a3 {[%emt 0:00:04]} Be7 {[%emt 0:00:05]} 14. Rc1 {[%emt 0:00:09]}
Bf6 {[%emt 0:00:04]} 15. Qd3 {[%emt 0:00:11]} Rad8 {[%emt 0:00:09]} 16. Rfd1 {
[%emt 0:00:01]} Rfe8 {[%emt 0:00:12]} 17. b4 {[%emt 0:00:05]} b6 {[%emt 0:00:
04]} 18. b5 {[%emt 0:00:06]} Na5 {[%emt 0:00:11]} 19. Rxc7 {[%emt 0:00:06]} Nb3
{[%emt 0:00:22]} 20. Rc3 {[%emt 0:00:28]} Nxd4 {[%emt 0:00:12]} 21. Nxd4 {
[%emt 0:00:04]} Bxd4 {[%emt 0:00:02]} 22. Rc4 {[%emt 0:00:23]} Rxe3 {[%emt 0:
00:25]} 23. Qxd4 {[%emt 0:00:38]} Qxd4 {[%emt 0:00:37]} 24. Rcxd4 {[%emt 0:00:
01]} Rxd4 {[%emt 0:00:03]} 25. fxe3 {[%emt 0:00:01]} Rxd1+ {[%emt 0:00:01]
Pert, Nina won by resignation} 0-1

[Event "Live Chess"]
[Site "Chess.com"]
[Date "2020.05.16"]
[Round "1.44"]
[White "Pert, Nina"]
[Black "Varney, Zoe"]
[Result "0-1"]
[ECO "C54"]
[WhiteElo "1798"]
[BlackElo "1969"]
[PlyCount "100"]
[EventDate "2020.??.??"]
[TimeControl "180+2"]
[WhiteClock "0:00:30"]
[BlackClock "0:00:24"]

1. e4 {[%emt 0:00:00]} e5 {[%emt 0:00:01]} 2. Nf3 {[%emt 0:00:01]} Nc6 {
[%emt 0:00:01]} 3. Bc4 {[%emt 0:00:01]} Bc5 {[%emt 0:00:01]} 4. c3 {[%emt 0:00:
01]} Nf6 {[%emt 0:00:02]} 5. d4 {[%emt 0:00:01]} exd4 {[%emt 0:00:01]} 6. cxd4
{[%emt 0:00:01]} Bb4+ {[%emt 0:00:01]} 7. Nc3 {[%emt 0:00:01]} Nxe4 {[%emt 0:
00:01]} 8. O-O {[%emt 0:00:01]} Bxc3 {[%emt 0:00:01]} 9. d5 {[%emt 0:00:01]}
Bf6 {[%emt 0:00:01]} 10. Re1 {[%emt 0:00:01]} Ne7 {[%emt 0:00:01]} 11. Rxe4 {
[%emt 0:00:03]} d6 {[%emt 0:00:01]} 12. Bg5 {[%emt 0:00:02]} Bxg5 {[%emt 0:00:
01]} 13. Nxg5 {[%emt 0:00:01]} h6 {[%emt 0:00:01]} 14. Qe2 {[%emt 0:00:01]}
hxg5 {[%emt 0:00:01]} 15. Re1 {[%emt 0:00:01]} Be6 {[%emt 0:00:01]} 16. dxe6 {
[%emt 0:00:01]} f6 {[%emt 0:00:01]} 17. Rd4 {[%emt 0:00:32]} d5 {[%emt 0:00:24]
} 18. Bxd5 {[%emt 0:00:12]} Nxd5 {[%emt 0:00:10]} 19. Qe4 {[%emt 0:00:02]} c6 {
[%emt 0:01:09]} 20. Qg6+ {[%emt 0:00:02]} Ke7 {[%emt 0:00:01]} 21. Qf7+ {
[%emt 0:00:04]} Kd6 {[%emt 0:00:01]} 22. e7 {[%emt 0:00:05]} Qe8 {[%emt 0:00:
19]} 23. Qxg7 {[%emt 0:00:22]} Kc7 {[%emt 0:00:23]} 24. Rde4 {[%emt 0:00:17]}
Kb6 {[%emt 0:00:14]} 25. a4 {[%emt 0:00:25]} Qh5 {[%emt 0:00:12]} 26. h3 {
[%emt 0:00:25]} Rae8 {[%emt 0:00:02]} 27. b4 {[%emt 0:00:11]} Rhg8 {[%emt 0:00:
22]} 28. Qxg8 {[%emt 0:00:29]} Rxg8 {[%emt 0:00:01]} 29. e8=Q {[%emt 0:00:02]}
Rxe8 {[%emt 0:00:01]} 30. Rxe8 {[%emt 0:00:02]} Nxb4 {[%emt 0:00:01]} 31. Rb1 {
[%emt 0:00:09]} Qxe8 {[%emt 0:00:07]} 32. Rxb4+ {[%emt 0:00:04]} Ka5 {[%emt 0:
00:01]} 33. Rb1 {[%emt 0:00:06]} Kxa4 {[%emt 0:00:02]} 34. Ra1+ {[%emt 0:00:01]
} Kb5 {[%emt 0:00:01]} 35. Rxa7 {[%emt 0:00:02]} Kb6 {[%emt 0:00:02]} 36. Ra1 {
[%emt 0:00:02]} Qe5 {[%emt 0:00:02]} 37. Rb1+ {[%emt 0:00:02]} Kc7 {[%emt 0:00:
02]} 38. Rc1 {[%emt 0:00:03]} b5 {[%emt 0:00:02]} 39. Rb1 {[%emt 0:00:02]} Kb6
{[%emt 0:00:01]} 40. Kf1 {[%emt 0:00:03]} c5 {[%emt 0:00:01]} 41. Re1 {[%emt 0:
00:02]} Qd5 {[%emt 0:00:06]} 42. f3 {[%emt 0:00:03]} c4 {[%emt 0:00:01]} 43.
Rb1 {[%emt 0:00:02]} Qd3+ {[%emt 0:00:02]} 44. Kf2 {[%emt 0:00:01]} Qxb1 {
[%emt 0:00:01]} 45. Kg3 {[%emt 0:00:01]} c3 {[%emt 0:00:01]} 46. Kg4 {[%emt 0:
00:02]} c2 {[%emt 0:00:01]} 47. Kf5 {[%emt 0:00:01]} c1=Q+ {[%emt 0:00:01]} 48.
Kxf6 {[%emt 0:00:01]} Qc6+ {[%emt 0:00:01]} 49. Ke5 {[%emt 0:00:02]} Qe1+ {
[%emt 0:00:02]} 50. Kd4 {[%emt 0:00:01]} Qec3# {[%emt 0:00:03] Varney, Zoe won
by checkmate} 0-1

[Event "Live Chess"]
[Site "Chess.com"]
[Date "2020.05.16"]
[Round "1.51"]
[White "Sucikova, Svetlana"]
[Black "Oh, Julie"]
[Result "1-0"]
[ECO "A36"]
[WhiteElo "2112"]
[BlackElo "1211"]
[PlyCount "91"]
[EventDate "2020.??.??"]
[TimeControl "180+2"]
[WhiteClock "0:00:24"]
[BlackClock "0:01:24"]

1. e3 {[%emt 0:00:02]} e5 {[%emt 0:00:07]} 2. c4 {[%emt 0:00:02]} c5 {[%emt 0:
00:13]} 3. Nc3 {[%emt 0:00:02]} Nf6 {[%emt 0:00:12]} 4. g3 {[%emt 0:00:02]} Nc6
{[%emt 0:00:05]} 5. Bg2 {[%emt 0:00:02]} d6 {[%emt 0:00:07]} 6. Nge2 {[%emt 0:
00:01]} Bf5 {[%emt 0:00:04]} 7. O-O {[%emt 0:00:03]} h6 {[%emt 0:00:05]} 8. d4
{[%emt 0:00:06]} Be7 {[%emt 0:00:30]} 9. a3 {[%emt 0:00:23]} O-O {[%emt 0:00:
05]} 10. d5 {[%emt 0:00:02]} Nb8 {[%emt 0:00:12]} 11. f4 {[%emt 0:00:05]} Qd7 {
[%emt 0:00:14]} 12. e4 {[%emt 0:00:08]} Bh3 {[%emt 0:00:10]} 13. f5 {[%emt 0:
00:02]} Bxg2 {[%emt 0:00:02]} 14. Kxg2 {[%emt 0:00:00]} b6 {[%emt 0:00:05]} 15.
Kh1 {[%emt 0:00:05]} Qc8 {[%emt 0:00:11]} 16. Ng1 {[%emt 0:00:03]} Nbd7 {
[%emt 0:00:02]} 17. Qe2 {[%emt 0:00:06]} Qd8 {[%emt 0:00:04]} 18. Bd2 {[%emt 0:
00:05]} Nh7 {[%emt 0:00:02]} 19. Nf3 {[%emt 0:00:02]} Bg5 {[%emt 0:00:04]} 20.
Nxg5 {[%emt 0:00:04]} Nxg5 {[%emt 0:00:02]} 21. Nb5 {[%emt 0:00:21]} a6 {
[%emt 0:00:10]} 22. Nc3 {[%emt 0:00:24]} f6 {[%emt 0:00:12]} 23. h4 {[%emt 0:
00:08]} Nh7 {[%emt 0:00:08]} 24. g4 {[%emt 0:00:01]} Qe8 {[%emt 0:00:02]} 25.
Rg1 {[%emt 0:00:03]} g5 {[%emt 0:00:12]} 26. fxg6 {[%emt 0:00:14]} Qxg6 {
[%emt 0:00:02]} 27. Qf3 {[%emt 0:00:08]} Rae8 {[%emt 0:00:10]} 28. Raf1 {
[%emt 0:00:05]} Rf7 {[%emt 0:00:03]} 29. Nd1 {[%emt 0:00:02]} Ref8 {[%emt 0:00:
01]} 30. Ne3 {[%emt 0:00:01]} b5 {[%emt 0:00:02]} 31. cxb5 {[%emt 0:00:07]}
axb5 {[%emt 0:00:02]} 32. Nf5 {[%emt 0:00:01]} Re7 {[%emt 0:00:03]} 33. Nxe7+ {
[%emt 0:00:02]} Kg7 {[%emt 0:00:06]} 34. Nxg6 {[%emt 0:00:00]} Kxg6 {[%emt 0:
00:01]} 35. Qf5+ {[%emt 0:00:02]} Kg7 {[%emt 0:00:01]} 36. Qxd7+ {[%emt 0:00:
00]} Rf7 {[%emt 0:00:01]} 37. Qxf7+ {[%emt 0:00:02]} Kxf7 {[%emt 0:00:01]} 38.
Bxh6 {[%emt 0:00:01]} Kg6 {[%emt 0:00:02]} 39. Bc1 {[%emt 0:00:02]} Nf8 {
[%emt 0:00:04]} 40. g5 {[%emt 0:00:01]} Nd7 {[%emt 0:00:03]} 41. gxf6+ {
[%emt 0:00:02]} Kf7 {[%emt 0:00:01]} 42. Rg7+ {[%emt 0:00:01]} Ke8 {[%emt 0:00:
02]} 43. Rxd7 {[%emt 0:00:00]} Kxd7 {[%emt 0:00:01]} 44. f7 {[%emt 0:00:01]}
Ke7 {[%emt 0:00:01]} 45. f8=Q+ {[%emt 0:00:00]} Kd7 {[%emt 0:00:01]} 46. Rf7# {
[%emt 0:00:02] Sucikova, Svetlana won by checkmate} 1-0